bitfinex/quotes_BTCUSD_20250331
["timestamp","ask_amount","ask_price","bid_price","bid_amount"]
[1743459633915,0.12260386,82414.0,82413.0,0.24972915]
[1743459634747,0.12460386,82414.0,82413.0,0.00704915]
[1743459635990,0.12760386,82414.0,82413.0,0.00704915]
[1743459636265,0.17716874,82414.0,82413.0,0.00704915]
[1743459637268,0.17716874,82414.0,82413.0,0.01918315]
[1743459638908,0.05456488,82414.0,82413.0,0.01918315]
[1743459640703,0.05456488,82414.0,82413.0,0.00704915]
[1743459641547,0.05456488,82414.0,82413.0,0.01918315]
[1743459643085,0.05456488,82414.0,82413.0,0.00704915]
[1743459643934,0.05456488,82414.0,82413.0,0.01918315]
[1743459645557,0.05456488,82414.0,82413.0,0.00704915]
[1743459646132,0.05456488,82414.0,82413.0,0.01918315]
[1743459646782,0.05456488,82414.0,82413.0,0.00704915]
[1743459646985,0.05456488,82414.0,82413.0,0.24972915]
[1743459647588,0.3,82413.0,82402.0,0.0001684]
[1743459647789,0.012137,82391.0,82384.0,0.01208246]
[1743459648062,0.72667237,82391.0,82384.0,0.01208246]
[1743459648272,1.57995271,82391.0,82384.0,0.01208246]
[1743459648474,1.15499071,82391.0,82384.0,0.01208246]
[1743459648666,0.39202571,82391.0,82385.0,0.012138]
[1743459648916,0.29996871,82391.0,82387.0,0.254893]
[1743459649121,0.12260386,82391.0,82390.0,0.0123053]
[1743459649326,0.01454085,82399.0,82396.0,0.242729]
[1743459649571,0.01454085,82397.0,82395.0,0.254867]
[1743459649781,0.13714471,82396.0,82395.0,0.26694946]
[1743459649993,0.02387604,82397.0,82396.0,0.012136]
[1743459652078,0.02587604,82397.0,82396.0,0.012136]
[1743459652794,0.02787604,82397.0,82396.0,0.012136]
[1743459653630,0.02787604,82397.0,82395.0,0.25481246]
[1743459653829,0.02787604,82397.0,82395.0,0.26694846]
[1743459654678,0.02587604,82397.0,82395.0,0.26694846]
[1743459655090,0.02587604,82397.0,82396.0,0.012136]
[1743459655962,0.02787604,82397.0,82396.0,0.012136]
[1743459656572,0.02987604,82397.0,82396.0,0.012136]
[1743459657235,0.02787604,82397.0,82396.0,0.012136]
[1743459657447,0.02987604,82397.0,82396.0,0.012136]
[1743459660287,0.02987604,82397.0,82396.0,0.089736]
[1743459660977,0.006,82397.0,82396.0,0.089736]
[1743459661225,0.006,82397.0,82396.0,0.09097005]
[1743459661443,0.006,82397.0,82396.0,0.16234162]
[1743459661672,0.006,82397.0,82396.0,0.16110757]
[1743459664408,0.006,82397.0,82396.0,0.136936]
[1743459665425,0.006,82397.0,82396.0,0.059336]
[1743459665881,0.006,82397.0,82396.0,0.012136]
[1743459668247,0.006,82397.0,82395.0,0.26694846]
[1743459668248,0.012136,82396.0,82395.0,0.01208246]
[1743459668478,0.13473986,82396.0,82395.0,0.01208246]
[1743459668895,0.12260386,82396.0,82395.0,0.01208246]
[1743459669103,0.0063368,82397.0,82395.0,0.02421846]
[1743459669311,0.0063368,82397.0,82396.0,0.333066]
[1743459669538,0.0023368,82397.0,82396.0,0.333066]
[1743459669752,0.0003368,82397.0,82396.0,0.333066]
[1743459670763,0.0023368,82397.0,82396.0,0.333066]
[1743459672342,0.0043368,82397.0,82396.0,0.379666]
[1743459672549,0.0043368,82397.0,82396.0,0.429666]
[1743459672775,0.2430078,82416.0,82410.0,0.25482]
[1743459672952,0.12260386,82413.0,82410.0,0.25482]
[1743459673287,0.04990168,82414.0,82412.0,0.012134]
[1743459673487,0.04990168,82414.0,82413.0,0.254814]
[1743459673866,0.04990168,82414.0,82409.0,0.242686]
[1743459674042,0.05490168,82414.0,82412.0,0.242682]
[1743459674246,0.05490168,82414.0,82413.0,0.012134]
[1743459674446,0.04990168,82414.0,82413.0,0.02421646]
[1743459674648,0.04990168,82414.0,82413.0,0.07381646]
[1743459674847,0.05490168,82414.0,82413.0,0.07381646]
[1743459675032,0.05990168,82414.0,82413.0,0.07381646]
[1743459676664,0.05990168,82414.0,82413.0,0.01208246]
[1743459676842,0.31471168,82414.0,82413.0,0.01208246]
[1743459677053,0.05990168,82414.0,82413.0,0.01208246]
[1743459679720,0.07203468,82414.0,82413.0,0.01208246]
[1743459680131,0.07506825,82414.0,82413.0,0.01208246]
[1743459680539,0.254831,82407.0,82406.0,0.3]
[1743459680743,0.254831,82407.0,82402.0,0.01208246]
[1743459680950,0.36834065,82406.0,82402.0,0.01215019]
[1743459681157,0.00303395,82405.0,82402.0,0.01215019]
[1743459681384,0.12260386,82405.0,82402.0,0.01215019]
[1743459681601,0.24573995,82404.0,82402.0,0.01215019]
[1743459681994,0.00303395,82404.0,82402.0,0.01215019]
[1743459682224,0.12260386,82405.0,82403.0,0.3]
[1743459683589,0.242694,82409.0,82403.0,0.542706]
[1743459683796,0.004,82405.0,82404.0,0.542704]
[1743459684012,0.008,82405.0,82404.0,0.554839]
[1743459684436,0.12260386,82409.0,82406.0,0.242698]
[1743459684817,0.13260386,82409.0,82406.0,0.242698]
[1743459685024,0.12760386,82409.0,82406.0,0.242698]
[1743459685230,0.12260386,82409.0,82406.0,0.242698]
[1743459685619,0.12760386,82409.0,82406.0,0.242698]
[1743459687298,0.12760386,82409.0,82407.0,0.242695]
[1743459687494,0.13260386,82409.0,82407.0,0.242695]
[1743459688291,0.13260386,82409.0,82406.0,0.242698]
[1743459688292,0.0515714,82412.0,82411.0,0.25482]
[1743459690053,0.0565714,82412.0,82411.0,0.25482]
[1743459690367,0.0615714,82412.0,82411.0,0.25482]
[1743459691398,0.0615714,82412.0,82411.0,0.26690246]
[1743459694707,0.0615714,82412.0,82411.0,0.61390246]
[1743459695976,0.01,82412.0,82411.0,0.61390246]
[1743459696193,0.005,82412.0,82411.0,0.61390246]
[1743459696346,0.005,82412.0,82411.0,0.61490246]
[1743459697182,0.008,82412.0,82411.0,0.61490246]
[1743459697642,0.003,82412.0,82411.0,0.61390246]
[1743459698992,0.08667809,82429.0,82423.0,0.24265]
[1743459699215,0.75967086,82428.0,82423.0,0.24265]
[1743459699489,0.387874,82427.0,82423.0,0.24265]
[1743459699717,0.00179992,82426.0,82423.0,0.24265]
[1743459699922,0.324924,82425.0,82423.0,0.24265]
[1743459700256,0.460588,82427.0,82423.0,0.24365]
[1743459700846,0.460588,82427.0,82423.0,0.24265]
[1743459701046,0.005,82425.0,82423.0,0.24365]
[1743459701260,0.326853,82424.0,82423.0,0.24365]
[1743459702937,0.326853,82424.0,82423.0,0.24265]
[1743459703170,0.003,82424.0,82423.0,0.333582]
[1743459704237,0.009,82424.0,82423.0,0.333582]
[1743459704815,0.0093366,82424.0,82423.0,0.333582]
[1743459706015,0.0336566,82424.0,82423.0,0.333582]
[1743459706236,0.0093366,82424.0,82423.0,0.32145]
[1743459706847,0.0093366,82424.0,82423.0,0.24265]
[1743459707047,0.242656,82422.0,82420.0,0.01208246]
[1743459707257,0.24445592,82422.0,82420.0,0.01208246]
[1743459707459,0.24445592,82422.0,82412.0,0.3816]
[1743459707460,0.25479,82421.0,82413.0,0.254813]
[1743459707658,0.25479,82421.0,82414.0,0.012133]
[1743459707882,0.012132,82421.0,82415.0,0.242672]
[1743459708113,0.254798,82419.0,82412.0,0.636414]
[1743459708343,0.37740186,82419.0,82412.0,0.62428]
[1743459708554,0.242666,82418.0,82412.0,0.62428]
[1743459708977,0.254799,82418.0,82412.0,0.32428]
[1743459710142,0.016133,82418.0,82412.0,0.32428]
[1743459710360,0.009,82418.0,82413.0,0.242678]
[1743459711345,0.004,82418.0,82413.0,0.242678]
[1743459711817,0.246667,82418.0,82413.0,0.242678]
[1743459712225,0.242667,82418.0,82413.0,0.242678]
[1743459712567,0.251667,82418.0,82413.0,0.242678]
[1743459713034,0.2638,82418.0,82412.0,0.0816]
[1743459713236,0.254806,82416.0,82412.0,0.0816]
[1743459713380,0.00179992,82415.0,82412.0,0.0816]
[1743459714021,0.012133,82417.0,82412.0,0.0816]
[1743459714247,0.009,82418.0,82416.0,0.24267]
[1743459714482,0.004,82418.0,82416.0,0.254803]
[1743459715169,0.0515714,82423.0,82419.0,0.24266]
[1743459715871,0.0515714,82423.0,82419.0,0.254793]
[1743459716073,0.02432,82420.0,82419.0,0.254793]
[1743459716282,0.0515714,82423.0,82419.0,0.254793]
[1743459716903,0.02499666,82421.0,82419.0,0.254793]
[1743459717318,0.02499666,82421.0,82418.0,0.254795]
[1743459717319,0.02499666,82421.0,82416.0,0.242669]
[1743459717572,0.02499666,82421.0,82417.0,0.242666]
[1743459717778,0.02499666,82421.0,82417.0,0.25474846]
[1743459717984,0.006,82421.0,82417.0,0.25474846]
[1743459718553,0.011,82421.0,82417.0,0.25474846]
[1743459718725,0.006,82421.0,82417.0,0.25474846]
[1743459718907,0.011,82421.0,82417.0,0.25474846]
[1743459719109,0.005,82421.0,82417.0,0.25474846]
[1743459719490,0.011,82421.0,82417.0,0.25474846]
[1743459719983,0.005,82421.0,82417.0,0.25474846]
[1743459720289,0.011,82421.0,82417.0,0.25474846]
[1743459720618,0.011,82421.0,82417.0,0.01208246]
[1743459720825,0.265791,82421.0,82417.0,0.01208246]
[1743459721229,0.242662,82419.0,82417.0,0.01208246]
[1743459721434,0.242668,82417.0,82412.0,0.3244502]
[1743459721638,0.012133,82418.0,82412.0,0.3244502]
[1743459721842,0.012133,82418.0,82413.0,0.242678]
[1743459722281,0.12260386,82419.0,82414.0,0.242675]
[1743459722628,0.004,82417.0,82414.0,0.242675]
[1743459723150,0.004,82417.0,82412.0,0.3365842]
[1743459723358,0.004,82417.0,82412.0,0.0001682]
[1743459723566,0.38240086,82419.0,82412.0,0.0001682]
[1743459723970,0.37740086,82419.0,82412.0,0.0001682]
[1743459724284,0.005,82417.0,82412.0,0.0001682]
[1743459724489,0.012134,82413.0,82412.0,0.0001682]
[1743459724713,0.63903571,82413.0,82412.0,0.0001682]
[1743459724896,0.70578771,82413.0,82412.0,0.0001682]
[1743459725330,0.65868071,82413.0,82412.0,0.0001682]
[1743459726178,0.66168071,82413.0,82412.0,0.0001682]
[1743459727348,0.66468071,82413.0,82412.0,0.0001682]
[1743459728542,0.39795871,82413.0,82412.0,0.0001682]
[1743459728743,0.80875271,82413.0,82412.0,0.0001682]
[1743459730377,0.80875271,82413.0,82406.0,0.0001683]
[1743459730378,0.26937185,82407.0,82406.0,0.0001683]
[1743459730586,1.20538011,82407.0,82406.0,0.0001683]
[1743459730799,1.15380871,82407.0,82406.0,0.0001683]
[1743459731031,1.17280845,82407.0,82406.0,0.0001683]
[1743459732065,1.17380845,82407.0,82406.0,0.0001683]
[1743459732726,1.18314666,82407.0,82406.0,0.0001683]
[1743459733097,1.18214666,82407.0,82406.0,0.0001683]
[1743459733295,1.18700966,82407.0,82406.0,0.0001683]
[1743459733480,1.19300966,82407.0,82406.0,0.0001683]
[1743459733679,1.19000966,82407.0,82406.0,0.0001683]
[1743459733882,1.18700966,82407.0,82406.0,0.0001683]
[1743459734080,1.24158106,82407.0,82406.0,0.0001683]
[1743459734992,1.24458106,82407.0,82406.0,0.0001683]
[1743459737664,0.43599532,82407.0,82406.0,0.0001683]
[1743459737846,0.31338232,82407.0,82406.0,0.0001683]
[1743459738057,0.18951347,82407.0,82406.0,0.2550033]
[1743459738266,0.18951347,82407.0,82406.0,0.0001683]
[1743459738470,0.20405432,82407.0,82406.0,0.0001683]
[1743459738677,0.06690961,82407.0,82406.0,0.2550033]
[1743459738882,0.006,82407.0,82406.0,0.2550033]
[1743459739309,0.006,82407.0,82406.0,0.3361033]
[1743459740400,0.242685,82412.0,82406.0,0.0812683]
[1743459740611,0.23633648,82420.0,82409.0,0.012134]
[1743459740822,0.01899776,82416.0,82415.0,0.0827]
[1743459742278,0.02399776,82416.0,82415.0,0.0827]
[1743459742724,0.02899776,82416.0,82415.0,0.0837]
[1743459744893,0.04113076,82416.0,82415.0,0.0837]
[1743459745105,0.16373462,82416.0,82415.0,0.001]
[1743459745701,0.15160162,82416.0,82415.0,0.001]
[1743459746164,0.15160162,82416.0,82412.0,0.23076446]
[1743459746357,0.12260386,82415.0,82412.0,0.23076446]
[1743459746568,0.242682,82413.0,82408.0,0.0774]
[1743459746762,0.13473686,82415.0,82408.0,0.0774]
[1743459746763,0.242691,82410.0,82408.0,0.0774]
[1743459746965,0.012134,82409.0,82408.0,0.0774]
[1743459747318,0.37742886,82410.0,82408.0,0.0774]
[1743459747555,0.12260386,82410.0,82408.0,0.0774]
[1743459748991,0.12660386,82410.0,82408.0,0.0774]
[1743459749215,0.13060386,82410.0,82408.0,0.0774]
[1743459749977,0.008,82410.0,82409.0,0.012134]
[1743459750403,0.008,82410.0,82409.0,0.058434]
[1743459750695,0.13060386,82410.0,82409.0,0.0463]
[1743459750947,0.15492386,82410.0,82409.0,0.0463]
[1743459751137,0.13060386,82410.0,82409.0,0.0463]
[1743459751531,0.13873786,82410.0,82409.0,0.0463]
[1743459751737,0.13473786,82410.0,82409.0,0.0463]
[1743459751942,0.13873786,82410.0,82409.0,0.0463]
[1743459752140,0.14273786,82410.0,82409.0,0.0463]
[1743459752706,0.15791764,82411.0,82409.0,0.0463]
[1743459753747,0.012134,82410.0,82409.0,0.0463]
[1743459754346,0.2551556,82412.0,82409.0,0.0463]
[1743459754749,0.002,82411.0,82409.0,0.0463]
[1743459754930,0.257822,82411.0,82409.0,0.0463]
[1743459755198,0.012134,82410.0,82409.0,0.0463]
[1743459755378,0.254825,82409.0,82408.0,0.0774]
[1743459755580,0.254831,82407.0,82406.0,0.0001683]
[1743459756401,1.12773511,82407.0,82406.0,0.0001683]
[1743459756631,2.32693027,82407.0,82406.0,0.0001683]
[1743459756856,2.41061755,82407.0,82406.0,0.0001683]
[1743459757263,1.99408955,82407.0,82406.0,0.0001683]
[1743459757721,1.94408955,82407.0,82406.0,0.0001683]
[1743459757936,1.92809027,82407.0,82406.0,0.0001683]
[1743459758150,1.93009027,82407.0,82406.0,0.0001683]
[1743459760687,0.254863,82397.0,82394.0,0.0001684]
[1743459760896,0.70795184,82397.0,82394.0,0.0001684]
[1743459761101,0.71438184,82397.0,82394.0,0.0001684]
[1743459761339,0.85152655,82397.0,82394.0,0.0001684]
[1743459762384,0.87052744,82397.0,82394.0,0.0001684]
[1743459763872,0.87052744,82397.0,82396.0,0.05100069]
[1743459764075,0.87152744,82397.0,82396.0,0.05100069]
[1743459764281,0.87252744,82397.0,82396.0,0.05100069]
[1743459764484,0.87152744,82397.0,82396.0,0.05100069]
[1743459764839,0.87252744,82397.0,82396.0,0.05100069]
[1743459765232,0.87152744,82397.0,82396.0,0.05116899]
[1743459765398,0.41313844,82397.0,82396.0,0.05116899]
[1743459765601,0.79511944,82397.0,82396.0,0.05116899]
[1743459766455,0.67205184,82397.0,82396.0,0.05116899]
[1743459766658,0.61105184,82397.0,82396.0,0.05116899]
[1743459766871,0.07270213,82397.0,82396.0,0.05116899]
[1743459767025,0.07270213,82397.0,82396.0,0.10026899]
[1743459767427,0.07270213,82397.0,82396.0,0.18206899]
[1743459767684,0.07270213,82397.0,82396.0,0.42479899]
[1743459768019,0.05370124,82397.0,82396.0,0.43693499]
[1743459772137,0.00212984,82397.0,82396.0,0.43693499]
[1743459772656,0.00212984,82397.0,82396.0,0.43783568]
[1743459777925,0.00212984,82397.0,82396.0,0.73783568]
[1743459778095,0.00212984,82397.0,82396.0,1.03783568]
[1743459778913,0.00212984,82397.0,82396.0,1.03863637]
[1743459779772,0.242653,82423.0,82409.0,0.242689]
[1743459780000,0.490888,82415.0,82410.0,0.0776]
[1743459780149,0.2482,82414.0,82410.0,0.0776]
[1743459780338,0.430101,82414.0,82410.0,0.0776]
[1743459780538,0.248191,82413.0,82410.0,0.0776]
[1743459780716,0.242684,82412.0,82410.0,0.0776]
[1743459780923,0.149426,82411.0,82410.0,0.0776]
[1743459781593,0.14399,82411.0,82410.0,0.0776]
[1743459781796,0.254818,82412.0,82410.0,0.0776]
[1743459782422,0.275041,82411.0,82410.0,0.0776]
[1743459782818,0.262907,82411.0,82410.0,0.0776]
[1743459783019,0.232231,82411.0,82410.0,0.0776]
[1743459783417,0.165231,82411.0,82410.0,0.0776]
[1743459783621,0.166231,82411.0,82410.0,0.0776]
[1743459785292,0.169231,82411.0,82410.0,0.0776]
[1743459785687,0.012136,82398.0,82397.0,0.3]
[1743459785899,0.254863,82397.0,82396.0,0.35287037]
[1743459787056,0.013136,82398.0,82396.0,0.35287037]
[1743459787268,0.243726,82398.0,82396.0,0.35287037]
[1743459787446,0.013136,82397.0,82396.0,0.35287037]
[1743459788195,0.012136,82397.0,82396.0,0.35287037]
[1743459788594,0.013136,82397.0,82396.0,0.35287037]
[1743459790229,0.014136,82397.0,82396.0,0.35287037]
[1743459791919,0.002,82397.0,82396.0,0.35287037]
[1743459792483,0.002,82397.0,82396.0,0.35357106]
[1743459794517,0.014136,82397.0,82396.0,0.35357106]
[1743459794702,0.002,82397.0,82396.0,0.35357106]
[1743459795776,0.014136,82397.0,82396.0,0.35357106]
[1743459796584,0.13673986,82397.0,82396.0,0.35357106]
[1743459797385,1.03374086,82397.0,82396.0,0.35357106]
[1743459799026,0.13673986,82397.0,82396.0,0.35357106]
[1743459799435,1.37031586,82397.0,82396.0,0.35357106]
[1743459799644,1.28582586,82397.0,82396.0,0.35357106]
[1743459800347,0.133059,82397.0,82396.0,0.35357106]
[1743459801014,0.15205919,82397.0,82396.0,0.35357106]
[1743459805082,0.13992319,82397.0,82396.0,0.35357106]
[1743459805281,0.13992319,82397.0,82396.0,0.43447106]
[1743459805480,0.02100019,82397.0,82396.0,0.44660706]
[1743459806927,0.02100019,82397.0,82396.0,0.49570706]
[1743459807126,0.002,82397.0,82396.0,0.49570706]
[1743459812771,0.002,82397.0,82396.0,0.79570706]
[1743459815979,0.02390833,82414.0,82396.0,0.79570706]
[1743459816180,0.012133,82415.0,82408.0,0.242693]
[1743459816584,0.254809,82415.0,82408.0,0.242693]
[1743459816807,9.6e-05,82416.0,82415.0,0.254807]
[1743459817971,0.149585,82416.0,82415.0,0.242674]
[1743459818181,0.144011,82416.0,82415.0,0.242674]
[1743459818405,0.145011,82416.0,82415.0,0.242674]
[1743459818737,0.001096,82416.0,82415.0,0.242674]
[1743459818906,0.003096,82416.0,82415.0,0.242674]
[1743459820236,0.003096,82416.0,82410.0,0.0462]
[1743459820377,0.242683,82413.0,82410.0,0.0462]
[1743459820899,0.242685,82412.0,82410.0,0.0462]
[1743459821438,0.254816,82413.0,82410.0,0.0462]
[1743459822038,0.242686,82411.0,82410.0,0.0462]
[1743459823880,0.012134,82412.0,82410.0,0.0462]
[1743459824431,0.002,82411.0,82410.0,0.0462]
[1743459824945,0.012134,82412.0,82410.0,0.0462]
[1743459825366,0.254816,82413.0,82410.0,0.0462]
[1743459825771,0.0003366,82414.0,82410.0,0.0462]
[1743459825934,0.002,82412.0,82411.0,0.254817]
[1743459826134,0.002,82412.0,82411.0,0.335717]
[1743459826975,0.002,82412.0,82411.0,0.684917]
[1743459827200,0.0003366,82414.0,82413.0,0.554814]
[1743459827417,0.0003366,82414.0,82413.0,0.635714]
[1743459827987,0.0003366,82414.0,82413.0,0.80751786]
[1743459829208,6e-07,82416.0,82415.0,0.684907]
[1743459829412,6e-07,82416.0,82415.0,0.80751086]
[1743459831979,6e-07,82416.0,82415.0,0.81451086]
[1743459837108,0.0001689,82416.0,82415.0,0.81451086]
[1743459840717,0.0001689,82416.0,82415.0,0.691907]
[1743459841278,0.0001689,82416.0,82415.0,0.391907]
[1743459841483,0.0001689,82416.0,82415.0,0.007]
[1743459841703,0.0123019,82416.0,82415.0,0.007]
[1743459841906,0.0001689,82416.0,82415.0,0.007]
[1743459842674,0.0001689,82416.0,82415.0,0.003]
[1743459842921,0.0001689,82416.0,82415.0,0.301]
[1743459843462,0.0001689,82416.0,82415.0,0.313133]
[1743459843630,0.0001689,82416.0,82415.0,0.312133]
[1743459843838,0.0021689,82416.0,82415.0,0.312133]
[1743459845217,0.0021689,82416.0,82415.0,0.358633]
[1743459851067,0.0021689,82416.0,82415.0,0.312133]
[1743459851490,0.0021689,82416.0,82415.0,0.287133]
[1743459854613,0.0021689,82416.0,82415.0,0.53453686]
[1743459858533,0.0021689,82416.0,82415.0,0.275]
[1743459858708,0.0021689,82416.0,82415.0,0.287133]
[1743459859115,0.0021689,82416.0,82414.0,0.0003366]
[1743459859319,0.0021689,82416.0,82415.0,0.012133]
[1743459860188,0.0021689,82416.0,82415.0,0.32423082]
[1743459860379,0.0001689,82416.0,82415.0,0.32423082]
[1743459860790,0.0021689,82416.0,82415.0,0.32423082]
[1743459860991,0.0021689,82416.0,82415.0,0.32456742]
[1743459861219,0.0001689,82416.0,82415.0,0.32456742]
[1743459861646,0.0021689,82416.0,82415.0,0.32456742]
[1743459864794,0.0021689,82416.0,82415.0,0.45056742]
[1743459864992,0.0021689,82416.0,82415.0,0.57317128]
[1743459867663,0.0001689,82416.0,82415.0,0.57317128]
[1743459873557,9e-07,82416.0,82415.0,0.57317128]
[1743459876150,9e-07,82416.0,82415.0,0.71057128]
[1743459884734,0.098949,82441.0,82415.0,0.71057128]
[1743459884934,0.242602,82440.0,82436.0,0.242611]
[1743459885628,0.03594123,82441.0,82437.0,0.242607]
[1743459886233,0.03594123,82441.0,82439.0,0.242602]
[1743459886463,0.03794123,82441.0,82439.0,0.242602]
[1743459886669,0.03794123,82441.0,82440.0,0.01213]
[1743459887081,0.254713,82446.0,82440.0,0.254729]
[1743459887278,0.002,82441.0,82440.0,0.254729]
[1743459888011,0.254713,82446.0,82440.0,0.254729]
[1743459888248,0.26435015,82447.0,82444.0,0.242586]
[1743459888249,0.00964015,82447.0,82444.0,0.242586]
[1743459888437,0.529009,82446.0,82440.0,0.254727]
[1743459888606,0.347851,82445.0,82440.0,0.242597]
[1743459889704,0.330701,82445.0,82440.0,0.242597]
[1743459889909,0.29019037,82446.0,82445.0,0.012129]
[1743459889910,0.03547737,82446.0,82445.0,0.012129]
[1743459890114,0.0003366,82447.0,82446.0,0.012129]
[1743459891311,0.0023366,82447.0,82446.0,0.012129]
[1743459891538,0.03847223,82447.0,82446.0,0.012129]
[1743459895623,0.03647223,82447.0,82446.0,0.012129]
[1743459897460,0.03847223,82447.0,82446.0,0.012129]
[1743459906444,0.03847223,82447.0,82445.0,0.241843]
[1743459906914,0.03847223,82447.0,82446.0,0.012129]
[1743459907520,0.03647223,82447.0,82446.0,0.012129]
[1743459907924,0.03847223,82447.0,82446.0,0.012129]
[1743459908314,0.03647223,82447.0,82446.0,0.012129]
[1743459908696,0.03847223,82447.0,82446.0,0.012129]
[1743459915651,0.03847223,82447.0,82446.0,0.312129]
[1743459918373,0.03847223,82447.0,82446.0,0.393929]
[1743459927000,0.03847223,82447.0,82446.0,0.51653286]
[1743459927238,0.03847223,82447.0,82446.0,0.56433286]
[1743459927947,0.03647223,82447.0,82446.0,0.56433286]
[1743459928381,0.03847223,82447.0,82446.0,0.56433286]
[1743459929476,0.03647223,82447.0,82446.0,0.56433286]
[1743459930924,0.03847223,82447.0,82446.0,0.56433286]
[1743459931394,0.0023366,82447.0,82446.0,0.56433286]
[1743459935368,0.07791511,82468.0,82462.0,0.242533]
[1743459935621,0.0001396,82466.0,82462.0,0.25463082]
[1743459937366,0.00934469,82466.0,82462.0,0.25463082]
[1743459938127,0.242527,82465.0,82462.0,0.01209782]
[1743459938508,0.28838465,82465.0,82462.0,0.01209782]
[1743459939616,0.254659,82463.0,82462.0,0.01209782]
[1743459940779,0.012129,82446.0,82445.0,0.0003364]
[1743459940985,0.242585,82445.0,82444.0,8e-07]
[1743459941307,0.39185871,82445.0,82444.0,8e-07]
[1743459942096,0.40091274,82445.0,82444.0,8e-07]
[1743459943481,0.40491274,82445.0,82444.0,8e-07]
[1743459943743,0.40891274,82445.0,82444.0,8e-07]
[1743459943881,0.40491274,82445.0,82444.0,8e-07]
[1743459944077,0.40091274,82445.0,82444.0,8e-07]
[1743459944337,0.40091274,82445.0,82420.0,0.0823]
[1743459944338,0.26926685,82441.0,82440.0,0.0002972]
[1743459944542,0.39187071,82441.0,82440.0,0.0002972]
[1743459944939,0.41086415,82441.0,82440.0,0.0002972]
[1743459945257,1.40323715,82441.0,82440.0,0.0002972]
[1743459945481,1.40723715,82441.0,82440.0,0.0002972]
[1743459946202,1.41023715,82441.0,82440.0,0.0002972]
[1743459948265,1.39124371,82441.0,82440.0,0.0002972]
[1743459948478,0.254766,82428.0,82427.0,8.9e-07]
[1743459948690,0.254766,82428.0,82422.0,5.8e-07]
[1743459948691,0.26932285,82423.0,82422.0,5.8e-07]
[1743459948895,0.254804,82416.0,82411.0,0.0003366]
[1743459949097,3.01958886,82416.0,82411.0,0.0003366]
[1743459949305,3.01958886,82416.0,82415.0,0.00044391]
[1743459949306,3.01868817,82416.0,82415.0,0.00044391]
[1743459949509,2.30012317,82416.0,82415.0,0.00044391]
[1743459950990,2.30512317,82416.0,82415.0,0.00144391]
[1743459951219,2.32412178,82416.0,82415.0,0.00144391]
[1743459951514,2.32412178,82416.0,82415.0,0.00044391]
[1743459951754,2.32398378,82416.0,82415.0,0.00044391]
[1743459951957,2.32898378,82416.0,82415.0,0.00044391]
[1743459952380,2.33398378,82416.0,82415.0,0.00044391]
[1743459953916,1.38173178,82416.0,82415.0,0.00044391]
[1743459954115,1.36831178,82416.0,82415.0,0.00044391]
[1743459954342,1.13226178,82416.0,82415.0,0.00044391]
[1743459954534,1.12226178,82416.0,82415.0,0.00044391]
[1743459955014,1.11726178,82416.0,82415.0,0.00044391]
[1743459955523,1.12726178,82416.0,82415.0,0.00144391]
[1743459956382,1.13645479,82416.0,82415.0,0.00144391]
[1743459957415,2.12432879,82416.0,82415.0,0.00144391]
[1743459957915,2.01825079,82416.0,82415.0,0.00144391]
[1743459958122,1.99925218,82416.0,82415.0,0.00144391]
[1743459958529,2.01379303,82416.0,82415.0,0.00144391]
[1743459960036,2.26321481,82416.0,82415.0,0.00144391]
[1743459961147,2.28221398,82416.0,82415.0,0.00144391]
[1743459962650,0.012136,82399.0,82397.0,0.3]
[1743459962855,0.242724,82398.0,82397.0,0.300096]
[1743459963696,0.25486,82398.0,82397.0,0.300096]
[1743459966926,0.25486,82398.0,82397.0,0.350096]
[1743459967587,0.25586,82398.0,82397.0,0.350096]
[1743459967763,0.002,82398.0,82397.0,0.350096]
[1743459967962,0.04673554,82398.0,82397.0,0.350096]
[1743459968351,0.04673554,82398.0,82397.0,0.685059]
[1743459968859,0.04573554,82398.0,82397.0,0.685059]
[1743459969418,0.04573554,82398.0,82397.0,0.6852273]
[1743459969803,0.04473554,82398.0,82397.0,0.6852273]
[1743459970027,0.47984666,82407.0,82402.0,0.254844]
[1743459970891,0.52395244,82407.0,82402.0,0.254844]
[1743459971091,0.28125344,82407.0,82403.0,0.242707]
[1743459971450,0.05623978,82407.0,82403.0,0.242707]
[1743459971679,0.05623978,82407.0,82402.0,0.254844]
[1743459971680,0.04710578,82407.0,82406.0,0.012135]
[1743459972031,0.04710578,82407.0,82406.0,0.136035]
[1743459972659,0.05010578,82407.0,82406.0,0.136035]
[1743459973162,0.04710578,82407.0,82406.0,0.136035]
[1743459973338,0.05010578,82407.0,82406.0,0.136035]
[1743459973519,0.04710578,82407.0,82406.0,0.136035]
[1743459974235,0.04410578,82407.0,82406.0,0.136035]
[1743459974477,0.72957804,82416.0,82410.0,0.012134]
[1743459974640,0.48015626,82416.0,82410.0,0.012134]
[1743459975437,0.242675,82415.0,82411.0,0.242684]
[1743459976789,0.257808,82415.0,82411.0,0.242684]
[1743459976950,0.242679,82414.0,82410.0,0.012134]
[1743459977151,0.30086066,82414.0,82409.0,0.242691]
[1743459977773,0.012134,82413.0,82408.0,0.012134]
[1743459977953,0.012134,82413.0,82408.0,0.254827]
[1743459978147,0.242687,82411.0,82406.0,0.378734]
[1743459978564,0.012134,82412.0,82408.0,0.242693]
[1743459978988,0.06018166,82414.0,82409.0,0.242689]
[1743459979146,0.04604866,82414.0,82410.0,0.0792]
[1743459979353,0.0003366,82416.0,82415.0,0.012133]
[1743459979560,0.0003366,82416.0,82415.0,0.140833]
[1743459979969,0.0003366,82416.0,82415.0,0.1287]
[1743459981441,0.0144696,82416.0,82415.0,0.1287]
[1743459982069,0.0174696,82416.0,82415.0,0.1287]
[1743459983502,0.06146296,82416.0,82415.0,0.1287]
[1743459984313,0.04932996,82416.0,82415.0,0.1287]
[1743459987382,0.04932996,82416.0,82415.0,0.140833]
[1743459988609,0.08988077,82417.0,82415.0,0.1287]
[1743459988793,0.242667,82418.0,82415.0,0.1287]
[1743459989135,0.00906251,82420.0,82415.0,0.371372]
[1743459989311,0.00906251,82420.0,82419.0,0.242662]
[1743459989517,0.05034151,82424.0,82422.0,0.012132]
[1743459989728,0.242635,82429.0,82423.0,0.0755]
[1743459989962,0.242631,82430.0,82423.0,0.0755]
[1743459990189,0.254769,82428.0,82423.0,0.0755]